Cogmind - Beta 15 @@@ ROGUE MODE // 2025.06.22 @ 20:13:02 Player: Ladmageddon Result: Destroyed by G-47 Trooper with Particle Gun Performance ------------- Evolutions (1) 500 Regions Visited (2) 400 Robots Destroyed (30) 150 Value Destroyed (888) 888 Prototype IDs (1) 20 Alien Tech Used (0) 0 Bonus (0) 0 TOTAL SCORE: 1958 Bonus ------- None Cogmind --------- Core Integrity 0/400 Matter 286/300 Energy 60/100 System Corruption 0% Temperature Cool (9) Movement Flying (320) Ox4 Location -9/Materials Parts ------- > --- POWER (1) -------- (None) > --- PROPULSION (2) --- Improved Flight Unit > --- UTILITY (4) ------ Heat Sink Large Storage Unit Signal Interpreter > --- WEAPON (2) ------- (None) > --- INVENTORY (15) --- Small Storage Unit Terrain Scan Processor Backup Plating I Peak State ------------ > --- POWER ------------ (None) > --- PROPULSION ------- Backup Propulsion I Improved Flight Unit > --- UTILITY ---------- Large Storage Unit Signal Interpreter Targeting Computer Light Armor Plating > --- WEAPON ----------- EM Shotgun Particle Cannon > --- INVENTORY -------- Small Storage Unit Terrain Scan Processor Backup Plating I EM Shotgun [Rating: 12] Favorites ----------- Power Light Ion Engine Engine Light Ion Engine Propulsion Light Treads Treads Light Treads Leg Aluminum Leg Hover Unit Backup Propulsion I Flight Unit Improved Flight Unit Utility Large Storage Unit Device Tractor Beam Storage Large Storage Unit Processor Signal Interpreter Protection Light Armor Plating Weapon Beam Cannon Energy Gun Medium Laser Energy Cannon Beam Cannon Ballistic Gun Assault Rifle Ballistic Cannon Light Cannon Launcher Grenade Launcher Build | -11 -10 -9 ------- Run | Yrd Mat Mat Slots Evolved 2 | . . 2 Power . | . . . Propulsion . | . . . Utility 2 | . . 2 Weapon . | . . . Parts Attached 27 | 6 8 13 Power 3 | 1 2 . Engine 3 | 1 2 . Core . | . . . Reactor . | . . . Propulsion 7 | 2 2 3 Treads 2 | . 2 . Leg 2 | 2 . . Wheel . | . . . Hover 2 | . . 2 Flight 1 | . . 1 Utility 8 | 1 2 5 Device 3 | . 1 2 Storage 2 | 1 1 . Processor 2 | . . 2 Hackware . | . . . Protection 1 | . . 1 Artifact . | . . . Weapon 9 | 2 2 5 Energy Gun 4 | 2 . 2 Energy Cannon 2 | . . 2 Ballistic Gun 1 | . 1 . Ballistic Cannon 1 | . . 1 Launcher 1 | . 1 . Special Weapon . | . . . Impact Weapon . | . . . Slashing Weapon . | . . . Piercing Weapon . | . . . Special Melee Weapon . | . . . Unidentified Prototypes 1 | . . 1 Parts Lost 20 | . 7 13 Power 3 | . 2 1 Propulsion 6 | . 2 4 Utility 4 | . 1 3 Weapon 7 | . 2 5 Highest Loss Streak 6 | . 6 5 To Critical Strikes . | . . . Average Backups 4 | 4 4 3 Power . | . . . Propulsion . | 1 . . Utility 2 | . 2 2 Weapon . | 1 . . Tool/Special . | . . . Unused Backups 3 | . . 3 Power . | . . . Propulsion 1 | . . 1 Utility 2 | . . 2 Weapon . | . . . Tool/Special . | . . . Average Slot Usage (%) 87 | . 92 85 Engine 6 | . 12 3 Treads 10 | . 17 6 Leg 3 | . 8 . Hover 6 | . . 9 Flight 1 | . . 2 Device 6 | . 9 4 Storage 12 | . 14 11 Processor 13 | . . 21 Protection 3 | . . 5 Energy Gun 6 | . 14 1 Energy Cannon 9 | . . 15 Ballistic Gun 4 | . 9 2 Launcher 1 | . 3 . Peak Build Rating 12 | 6 9 12 Average Rating 8 | 3 7 8 On Entrance 4 | . 6 6 Naked Turns . | . . . Heaviest Build 30 | 12 27 30 Greatest Support 40 | 20 40 40 Greatest Overweight (x) 7 | 3 1 7 Average Overweight (x) . | . . 1 Largest Inventory Capacity 15 | 8 15 15 Average Capacity 13 | 7 10 15 Most Carried 7 | 7 7 6 Average Carried 4 | 4 4 3 Final Capacity 15 | 8 15 15 Final Carried 6 | 6 5 3 Class Distribution -------------------- 100% | Mutant Dominant Class ---------------- Mutant | -10/Materials Mutant | -9/Materials Resources | -11 -10 -9 ----------- Run | Yrd Mat Mat Matter Collected 583 | 260 171 152 Remotely 141 | . . 141 Salvage Created 1003 | 102 439 462 Parts 47 | 5 20 22 Haulers Intercepted . | . . . Recyclers Shooed . | . . . Parts Field Recycled . | . . . Retrieved Matter . | . . . Parts Self-Destructed . | . . . Prevented . | . . . Kills | -11 -10 -9 ------- Run | Yrd Mat Mat Combat Hostiles Destroyed 23 | . 10 13 Guns 10 | . 10 . Cannons 4 | . . 4 AOE 9 | . . 9 Classes Destroyed 9 | 2 3 4 Worker 1 | . 1 . Tunneler 1 | 1 . . Recycler 3 | 1 1 1 Operator 1 | . . 1 Watcher 1 | . . 1 Swarmer 6 | . 3 3 Grunt 12 | . 7 5 Duelist 2 | . . 2 Sentry 3 | . . 3 Best Kill Streak 6 | 2 4 6 Combat Bots Only 5 | . 4 5 Max Kills in Single Turn 6 | 1 2 6 Gunslinging . | . . . Exploded 5 | . . 5 Melee . | . . . Uniques/NPCs Destroyed . | . . . Combat | -11 -10 -9 -------- Run | Yrd Mat Mat Hostile Shots Fired 227 | . 109 118 Missed 61 | . 32 29 Hits 166 | . 77 89 Melee 9 | . . 9 Projectile 157 | . 77 80 Critical Strikes 8 | . . 8 Damage Taken 2353 | . 1051 1302 Core 601 | . 192 409 Absorbed by Shields . | . . . Core Remaining (%) 61 | 100 23 . Volleys Fired 74 | 3 33 38 Largest 2 | 2 2 2 Hottest 128 | 90 70 128 Shots Fired 137 | 6 62 69 Gun 81 | 6 60 15 Cannon 54 | . . 54 Launcher 2 | . 2 . Special . | . . . Kinetic 46 | . 27 19 Thermal 71 | 3 27 41 Explosive 2 | . 2 . Electromagnetic 18 | 3 6 9 Robot Hit Streak 8 | 3 8 6 Robot Miss Streak 2 | 1 2 1 Penetration Max . | . . . Secondary Targets 3 | . 3 . Max Gunslinging Chain 1 | . 1 . Shots Hit Robots 70 | 4 42 24 Core Hits 43 | 3 19 21 Critical Kills . | . . . Critical Parts Destroyed . | . . . Critical Strikes 4 | 1 2 1 Burn 3 | 1 2 . Blast 1 | . . 1 Melee Attacks . | . . . Impact . | . . . Slashing . | . . . Piercing . | . . . Sneak Attacks . | . . . Combat Hostiles . | . . . Follow-up Attacks . | . . . Damage Inflicted 2147 | 50 605 1492 Guns 615 | 50 526 39 Cannons 421 | . . 421 Explosions 1102 | . 79 1023 Melee . | . . . Ramming 9 | . . 9 Kinetic 331 | . 241 90 Thermal 618 | 37 250 331 Explosive 1102 | . 79 1023 Electromagnetic 87 | 13 35 39 Impact . | . . . Slashing . | . . . Piercing . | . . . Highest Corruption . | . . . Average Corruption . | . . . Corruption Purged . | . . . Corruption Blocked . | . . . Overload Shots . | . . . Overflow Damage 66 | . 31 35 Projectiles . | . . . Explosions 66 | . 31 35 Melee . | . . . Knockbacks 2 | . . 2 Impact . | . . . Kinetic 2 | . . 2 Secondary . | . . . Self-Inflicted Damage 380 | . 237 143 Shots 6 | . 4 2 Rammed 2 | . . 2 Targets Rammed 2 | . . 2 Kicked . | . . . Crushed . | . . . Highest Temperature 195 | 60 117 195 Average Temperature 61 | 28 45 75 Received Heat Transfer 564 | . 285 279 Siege Activations . | . . . Martial Activations . | . . . Shielding Activations . | . . . Robots Disrupted . | . . . Combat Hostiles . | . . . Robots Corrupted . | . . . Combat Hostiles . | . . . Parts Fried . | . . . Impact Corruptions . | . . . Robots Melted . | . . . Combat Hostiles . | . . . Parts Melted 2 | . 1 1 Heat Transferred 1739 | 185 888 666 Parts Sabotaged . | . . . Parts Stolen . | . . . Parts Stripped . | . . . Power Chain Reactions . | . . . Alert | -11 -10 -9 ------- Run | Yrd Mat Mat Maximum Alert Level . | . . . Low Security (%) 100 | 100 100 100 Level 1 . | . . . Level 2 . | . . . Level 3 . | . . . Level 4 . | . . . Level 5 . | . . . High Security . | . . . Max Security . | . . . Peak Influence 197 | 10 138 197 Initial 53 | . . 53 Average 93 | 1 77 110 Influence Increases 938 | 10 368 560 Destroy 0b10 Robot/C 460 | . 200 260 Destroy 0b10 Robot/NC 35 | 10 10 15 Destroy Leader 102 | . 40 62 Successful Hack 8 | . . 8 Disable Machine 180 | . 45 135 Destroy Structure 138 | . 58 80 Partial Spotted 15 | . 15 . Influence Decreases 749 | 10 240 499 Entered New Map 75 | . . 75 Time Decay 474 | 10 170 294 Lost Part 200 | . 70 130 Squads Dispatched 2 | . 2 . Investigation 2 | . 2 . Extermination . | . . . Reinforcement . | . . . Assault . | . . . Garrison . | . . . Intercept . | . . . Searches Triggered . | . . . Construction Impeded . | . . . Haulers Reinforced . | . . . Active Scanning Responses . | . . . Cargo Convoy Interrupts . | . . . Stealth | -11 -10 -9 --------- Run | Yrd Mat Mat Distress Signals 3 | . 2 1 Communications Jammed . | . . . Distress Signals . | . . . Times Spotted 32 | . 13 19 Peak Tracking Total 7 | . 6 7 Tactical Retreats . | . . . Traps | -11 -10 -9 ------- Run | Yrd Mat Mat Traps Triggered 2 | . 2 . Indirectly . | . . . Trap Hack Attempts . | . . . Triggered . | . . . Disarmed . | . . . Reprogrammed . | . . . Reused . | . . . Traps Extracted . | . . . Installed . | . . . Triggered . | . . . Machines | -11 -10 -9 ---------- Run | Yrd Mat Mat Machines Disabled 12 | . 3 9 Max in Single Turn 2 | . 2 2 Machines Repaired . | . . . Machines Dismantled . | . . . Machines Sabotaged . | . . . Overloaded Fab Kills . | . . . Hacking | -11 -10 -9 --------- Run | Yrd Mat Mat Machines Accessed 2 | . . 2 Terminals 2 | . . 2 Fabricators . | . . . Repair Stations . | . . . Recycling Units . | . . . Scanalyzers . | . . . Garrison Access . | . . . Total Hacks 5 | . . 5 Successful 3 | . . 3 Failed 2 | . . 2 Catastrophic . | . . . Database Lockouts . | . . . Manual . | . . . Terminals 5 | . . 5 Fabricators . | . . . Repair Stations . | . . . Recycling Units . | . . . Scanalyzers . | . . . Garrison Access . | . . . Terminal Hacks 3 | . . 3 Record 1 | . . 1 Alert Level 1 | . . 1 Recall Reinforcements 1 | . . 1 Fabricator Hacks . | . . . Repair Station Hacks . | . . . Recycling Unit Hacks . | . . . Scanalyzer . | . . . Garrison Access Hacks . | . . . Unauthorized Hacks . | . . . Terminals . | . . . Fabricators . | . . . Repair Stations . | . . . Recycling Units . | . . . Scanalyzers . | . . . Garrison Access . | . . . Data Cores Recovered 1 | . . 1 Used 1 | . . 1 Hacking Detections 1 | . . 1 Full Trace Events 1 | . . 1 Feedback Events . | . . . Feedback Blocked . | . . . Robot Schematics Acquired . | . . . Robots Built . | . . . Authchips . | . . . Time . | . . . Total Robot Build Rating . | . . . Part Schematics Acquired . | . . . Parts Built . | . . . Authchips . | . . . Time . | . . . Total Part Build Rating . | . . . Parts Repaired . | . . . Time . | . . . Parts Recycled . | . . . Recycled Matter . | . . . Retrieved Matter . | . . . Retrieved Components . | . . . Parts Scanalyzed . | . . . Part Schematics Acquired . | . . . Parts Damaged . | . . . Bothacking | -11 -10 -9 ------------ Run | Yrd Mat Mat Used RIF Installer . | . . . Robots Hacked . | . . . Non-combat . | . . . Combat . | . . . Robot Hacks Applied . | . . . Relay Couplers Released . | . . . Fabnet Peak Effective % . | . . . Robots Rewired . | . . . Allies Hacked . | . . . Hacks Repelled . | . . . Allies | -11 -10 -9 -------- Run | Yrd Mat Mat Total Allies . | . . . Largest Group . | . . . Highest-Rated Group . | . . . Highest-Rated Ally . | . . . Total Orders . | . . . Ally Attacks . | . . . Total Damage . | . . . Kills . | . . . Allies Corrupted . | . . . Allies Melted . | . . . Intel | -11 -10 -9 ------- Run | Yrd Mat Mat Active Infowar (turns) 233 | . 233 . Terrain 233 | . 233 . Robot Analysis Total . | . . . Derelict Logs Recovered . | . . . Drone Launches . | . . . Drone Recoveries . | . . . Exploration | -11 -10 -9 ------------- Run | Yrd Mat Mat Turns Passed 1056 | 64 352 640 Spaces Moved 420 | 35 165 220 Core 23 | 18 . 5 Treads 178 | . 97 81 Legs 85 | 17 68 . Wheels . | . . . Hover 106 | . . 106 Flight 28 | . . 28 Fastest Speed 50 | 50 120 160 Average Speed 185 | 108 145 227 Slowest Speed 400 | 200 190 400 Overloaded Moves . | . . . Propulsion Burnouts . | . . . Robots Hopped . | . . . Potential Cave-ins . | . . . Cave-ins Triggered . | . . . Exploration Rate (%) 21 | 3 29 32 Regions Visited 2 Branch Regions . Pre-discovered Areas . | . . . Known Exits Taken . | . . . Unknown Exits Taken 2 | 1 1 . Scrap Searched . | . . . Spaces Dug . | . . . Terrain Destroyed 187 | . 101 86 Melee . | . . . Projectile . | . . . AOE 187 | . 101 86 Terrain Rammed . | . . . Walls Destroyed . | . . . Machines Disabled . | . . . Actions | -11 -10 -9 --------- Run | Yrd Mat Mat Total 556 | 53 215 288 Wait 4 | 1 3 . Move 418 | 34 164 220 Hop . | . . . Pick Up 27 | 9 6 12 Fast Attach 3 | 3 . . Attach 22 | 3 7 12 Detach . | . . . Swap 3 | . 2 1 Drop 3 | . . 3 Fire 74 | 3 33 38 Melee . | . . . Ram 2 | . . 2 Kick . | . . . Crush . | . . . Escape Stasis . | . . . Rewire . | . . . Trap . | . . . Miscellaneous . | . . . Route ------- -11/Scrapyard -10/Materials -9/Materials History --------- Turn | Location | Event 6 | -11/Scrapyard | Discovered new exit (range 14) 65 | -11/Scrapyard | Entered Materials 186 | -10/Materials | Core integrity fell below 50% 223 | -10/Materials | Lost 6 parts (2p2n2w) 314 | -10/Materials | Build established: Mutant 405 | -10/Materials | Discovered new exit (range 8) 417 | -10/Materials | Entered another Materials area 417 | -9/Materials | Evolved 2 slots: Utility x2 644 | -9/Materials | Lost 4 parts (1p2n1w) 976 | -9/Materials | Lost 3 parts (2n1w) 1045 | -9/Materials | Core integrity fell below 50% 1050 | -9/Materials | Core integrity fell below 20% 1057 | -9/Materials | Destroyed by G-47 Trooper with Particle Gun Last Messages --------------- R-06 Scavenger destroyed. U-05 Engineer lays Concrete. Atomic Centrifuge disabled. U-05 Engineer lays Concrete. Acquired 1 matter. U-05 Engineer lays Concrete. U-05 Engineer builds a Wall. Critical hit (Burn: +37). K-01 Serf collects debris. U-05 Engineer lays Concrete. K-01 Serf collects debris. U-05 Engineer lays Concrete. U-05 Engineer builds a Wall. The unstable cave ceiling collapses. K-01 Serf collects debris. R-06 Scavenger collects Aluminum Leg. U-05 Engineer builds a Wall. K-01 Serf collects debris. Acquired Heat Sink. U-05 Engineer builds a Wall. Map ----- +----------------------------------------------------+ | ???????????????????# #???????????????????????????? | | ????????????????####+###?????????????????????????? | | ############????# #?????????????????????????? | | # #????# #?????????????????????????? | | # ###### =[ #?????????????????????????? | | # ## %+ [ #?????????????????????????? | | # /% # #?????????????????????????? | | # !## + #?????????????????????????? | | # ## #####+##?????????????????????????? | | ####/######## #???# #???????? ?????????????????? | | +% #?????# #???# #??????? ? ???????????????? | | ### #?????# #???# #????? ?????????????? | | #?# #?????# #???# ###### ????????????? | | #?# #?????# #???# #???????????????? | | #?# #?????# #???# #????????????????? | | ??# #?????# ##### """" T #????????????????? | | ??# +?????# %""" #????????????????? | | ??# #?????+ ##### """" #????????????????? | | ### #?????# #???#k #????????????????? | | ## #?????# #???# #????????????????? | | # ?????? ???## ## #????????????????? | | # ????????????# #????????????????? | | # ????????????# g [ #????????????????? | | # ???????????## % # #????????????????? | | # #??????????# +????????????????? | | #?#+#????????????# = @% #????????????????? | | #????????????????# % [# #????????????????? | | #????????????????# ##Y u #????????????????? | | #????????????????## # w #???????????????? | | #?????????????????# ! #k #???????????????? | | ##?????????????????# *% + #???????????????? | | ???????????????????# "" = # #???????????????? | | ???????????????????# """ # #???????????????? | | ???????????????????# """ #?# ###???????????????? | | ???????????????????# a #?? #?????????????????? | | ? #????????????????#?? #???#?????????????????? | | #???????????????????######?????????????????????? | | #??????????????????????????????????????????????? | | #??????????????????????????????????????????????? | | ?????????????????????????????????????????????????? | | ?????????????????????????????????????????????????? | | ?????????????????????????????????????????????????? | | ?????????????????????????????????????????????????? | | ?????????????????????????????????????????????????? | | ?????????????????????????????????????????????????? | | ?????????????????????????????????????????????????? | | ?????????????????????????????????????????????????? | | ?????????????????????????????????????????????????? | | ?????????????????????????????????????????????????? | | ?????????????????????????????????????????????????? | +----------------------------------------------------+ Best States ------------- Heat Dissipation 28 Energy Generation 10 Energy Capacity 125 Matter Stores 300 Matter Capacity 300 Sight Range 16 Terrain Scan Range 16 Terrain Scan Density 10 Armor Coverage 150 Evasion (%) 55 Targeting Accuracy 5 Recoil Reduction 2 Item Schematics ----------------- None Robot Schematics ------------------ None Fabricated ------------ Nothing Repaired ---------- Nothing Alien Tech Used ----------------- None Achievements -------------- Dynamic Key Quick And Dirty Challenges ------------ None Game ------ Seed GodCompanionMesh Manual? 0 Play Time 00:11:19 Cumulative 17.5 hours Start 2025.06.22 @ 20:03:29 End 2025.06.22 @ 20:13:02 Sessions 1 Manual Loads 0 Difficulty Rogue Special Mode None Game No. 40 Rogue 37 Adventurer 3 Explorer 0 Win Type - Total 0 Types 0/0/0/0/0/0/0/0/0/0 Lore% 12 Gallery% 24 Achievement% 22 Wizard Run 0 Options --------- Layout 1 ASCII 0 Keyboard 0 Movement Mouse Keybinds 0 Fullscreen 1 Font 16/SmallcapsGlow Map View 25x20 Zoom Use 100% Tactical HUD 0 Map Filters NONE Filters NONE Steam SD RUN: 5c10ce57-d008-437b-a19a-4c89b900c099